bitfinex/quotes_BTCUSD_20241024
["timestamp","ask_amount","ask_price","bid_price","bid_amount"]
[1729758428080,0.001648,67130.0,67129.0,0.39107919]
[1729758428344,0.001648,67130.0,67129.0,0.40335617]
[1729758430408,0.001648,67130.0,67129.0,0.40883517]
[1729758430635,0.001648,67130.0,67129.0,0.50883517]
[1729758431477,0.001648,67130.0,67129.0,0.51383517]
[1729758433779,0.001648,67130.0,67129.0,0.53683517]
[1729758434367,0.001648,67130.0,67129.0,0.53791892]
[1729758436072,0.001648,67130.0,67129.0,0.53683517]
[1729758438056,0.001648,67130.0,67129.0,0.53183517]
[1729758443292,0.001648,67130.0,67129.0,0.50883517]
[1729758443515,0.00653621,67130.0,67129.0,0.41722579]
[1729758444971,0.00653621,67130.0,67129.0,0.16672198]
[1729758450932,0.00653621,67130.0,67129.0,0.25833136]
[1729758452012,0.001648,67130.0,67129.0,0.25833136]
[1729758452233,0.00653621,67130.0,67129.0,0.25833136]
[1729758452650,0.00653621,67130.0,67129.0,0.40883517]
[1729758467092,0.001648,67130.0,67129.0,0.40883517]
[1729758471239,0.001648,67130.0,67129.0,0.50883517]
[1729758473718,0.001648,67130.0,67129.0,0.55531978]
[1729758473911,0.001648,67130.0,67129.0,0.50883517]
[1729758474129,0.001648,67130.0,67129.0,0.55531943]
[1729758476313,0.001648,67130.0,67129.0,0.55640318]
[1729758476965,0.001648,67130.0,67129.0,0.55531943]
[1729758488529,0.001648,67130.0,67129.0,0.50883517]
[1729758489583,0.001648,67130.0,67129.0,0.41722579]
[1729758495860,0.001648,67130.0,67129.0,0.50883517]
[1729758504399,0.00653621,67130.0,67129.0,0.50883517]
[1729758507622,0.00653621,67130.0,67129.0,0.5553662]
[1729758514136,0.00653621,67130.0,67129.0,0.46375682]
[1729758514336,0.00653621,67130.0,67129.0,0.5553662]
[1729758514563,0.00653621,67130.0,67129.0,0.50883517]
[1729758520057,0.00653621,67130.0,67129.0,0.41722579]
[1729758520299,0.00653621,67130.0,67129.0,0.16672198]
[1729758528130,0.00653621,67130.0,67129.0,0.31722579]
[1729758575639,0.00745246,67130.0,67129.0,0.31722579]
[1729758576655,0.00653621,67130.0,67129.0,0.31722579]
[1729758577777,0.00745246,67130.0,67129.0,0.31722579]
[1729758578223,0.00745246,67130.0,67129.0,0.01227698]
[1729758578632,0.00745246,67130.0,67127.0,0.14897]
[1729758578843,0.00580446,67128.0,67127.0,0.14897]
[1729758580219,0.00580446,67128.0,67126.0,0.148972]
[1729758580451,0.00580446,67127.0,67126.0,0.148972]
[1729758580662,0.00488821,67127.0,67126.0,0.148972]
[1729758581849,0.00580446,67125.0,67124.0,0.15438272]
[1729758582305,0.07273554,67125.0,67124.0,0.15438272]
[1729758582685,0.050401,67125.0,67124.0,0.15438272]
[1729758583338,0.00580446,67125.0,67124.0,0.15438272]
[1729758583956,0.00580446,67125.0,67124.0,0.00540472]
[1729758584367,0.00091625,67124.0,67123.0,0.14898]
[1729758584574,0.00091625,67122.0,67121.0,0.148983]
[1729758587377,0.00488821,67125.0,67122.0,0.148982]
[1729758588003,0.00488821,67125.0,67123.0,0.14898]
[1729758588219,0.00488821,67125.0,67120.0,0.39510713]
[1729758588423,0.00488821,67125.0,67121.0,0.148984]
[1729758588634,0.00488821,67125.0,67123.0,0.148978]
[1729758589035,0.00488821,67125.0,67120.0,0.39510713]
[1729758589458,0.00091625,67121.0,67120.0,0.24612113]
[1729758590039,0.00488821,67125.0,67120.0,0.09713513]
[1729758590272,0.00488821,67125.0,67121.0,0.148984]
[1729758590842,0.15386321,67125.0,67121.0,0.148984]
[1729758592040,0.00488821,67125.0,67122.0,0.148982]
[1729758593608,0.00488821,67125.0,67123.0,0.148978]
[1729758593836,0.00488821,67125.0,67121.0,0.148984]
[1729758596472,0.00488821,67125.0,67122.0,0.148982]
[1729758597084,0.00488821,67125.0,67123.0,0.01103293]
[1729758598461,0.15386321,67125.0,67123.0,0.01103293]
[1729758599192,0.00091625,67124.0,67123.0,0.16001293]
[1729758599448,0.00091625,67122.0,67121.0,0.148983]
[1729758600548,0.00091625,67122.0,67121.0,0.148984]
[1729758600852,0.00580446,67125.0,67120.0,0.39510613]
[1729758601047,0.00580446,67125.0,67122.0,0.148981]
[1729758601263,0.00488821,67125.0,67120.0,0.39510613]
[1729758601475,0.00091625,67123.0,67122.0,0.148981]
[1729758601888,0.00580446,67125.0,67122.0,0.14898]
[1729758602105,0.00580446,67125.0,67120.0,0.09713513]
[1729758602326,0.00580446,67125.0,67122.0,0.148982]
[1729758602548,0.00091625,67124.0,67121.0,0.148984]
[1729758602762,0.00091625,67121.0,67120.0,0.24612113]
[1729758603880,0.00653821,67125.0,67123.0,0.14898]
[1729758603881,0.00091625,67124.0,67123.0,0.14898]
[1729758604334,0.00091625,67124.0,67121.0,0.148983]
[1729758604567,0.00091625,67122.0,67121.0,0.148983]
[1729758605193,0.15551421,67125.0,67121.0,0.148983]
[1729758605506,0.00653821,67125.0,67120.0,0.00552575]
[1729758605717,0.00653821,67125.0,67121.0,0.148982]
[1729758606147,0.00653821,67125.0,67123.0,0.148979]
[1729758606349,0.00653821,67125.0,67119.0,0.297978]
[1729758606528,0.00653821,67125.0,67121.0,0.148982]
[1729758606737,0.00653821,67125.0,67124.0,0.148978]
[1729758606944,0.00745446,67125.0,67122.0,0.148982]
[1729758607150,0.00653821,67125.0,67123.0,0.148979]
[1729758607491,0.00653821,67125.0,67124.0,0.148978]
[1729758607697,0.00745446,67125.0,67121.0,0.09160938]
[1729758608084,0.00653821,67125.0,67122.0,0.148981]
[1729758608467,0.00653821,67125.0,67121.0,0.09160938]
[1729758609026,0.00653821,67125.0,67124.0,0.148978]
[1729758609407,0.00745446,67125.0,67124.0,0.148978]
[1729758611440,0.00653821,67125.0,67124.0,0.148978]
[1729758611653,0.00165,67125.0,67124.0,0.48270057]
[1729758611860,0.00165,67125.0,67124.0,0.39109119]
[1729758614135,0.00165,67125.0,67124.0,0.29948181]
[1729758614370,0.00165,67125.0,67124.0,0.39109119]
[1729758615322,0.00653821,67125.0,67124.0,0.148978]
[1729758615795,0.00745446,67125.0,67124.0,0.148978]
[1729758616758,0.00580446,67123.0,67122.0,0.446946]
[1729758617720,0.00488821,67123.0,67122.0,0.45534122]
[1729758620395,0.00488821,67123.0,67122.0,0.5469506]
[1729758621914,0.05146432,67129.0,67122.0,0.1000046]
[1729758622117,0.04461096,67129.0,67128.0,0.148969]
[1729758622548,0.04461096,67129.0,67128.0,0.15734449]
[1729758623083,0.006648,67130.0,67128.0,0.15734449]
[1729758623285,0.006648,67130.0,67129.0,0.148966]
[1729758623486,0.006648,67130.0,67129.0,0.00837238]
[1729758623725,0.006648,67130.0,67128.0,0.148968]
[1729758623921,0.006648,67130.0,67127.0,0.297942]
[1729758624199,0.006648,67130.0,67129.0,0.00837238]
[1729758624431,0.006648,67130.0,67128.0,0.15734349]
[1729758624640,0.006648,67130.0,67129.0,0.00837238]
[1729758625319,0.155612,67130.0,67129.0,0.00837238]
[1729758625535,0.41193439,67130.0,67126.0,0.148973]
[1729758625707,0.24722138,67130.0,67126.0,0.148973]
[1729758625941,0.005,67129.0,67128.0,0.148969]
[1729758626159,0.005,67129.0,67127.0,0.0083786]
[1729758626367,0.153968,67129.0,67124.0,0.148976]
[1729758626571,0.153968,67129.0,67128.0,0.00837549]
[1729758626780,0.153968,67129.0,67125.0,0.148974]
[1729758626982,0.005,67129.0,67126.0,0.148972]
[1729758627188,0.005,67129.0,67126.0,0.15735371]
[1729758628205,0.005,67129.0,67126.0,0.00838171]
[1729758628598,0.005,67129.0,67125.0,0.148974]
[1729758628795,0.005,67129.0,67127.0,0.0083786]
[1729758629002,0.005,67129.0,67126.0,0.00838171]
[1729758629235,0.005,67129.0,67128.0,0.00837549]
[1729758629467,0.09660938,67129.0,67127.0,0.0083786]
[1729758629874,0.09660938,67129.0,67127.0,0.14897]
[1729758630077,0.09660938,67129.0,67128.0,0.00837549]
[1729758630495,0.09660938,67129.0,67126.0,0.148972]
[1729758630720,0.09660938,67129.0,67128.0,0.00837549]
[1729758630938,0.1585439,67129.0,67116.0,0.297991]
[1729758631237,0.1585439,67129.0,67110.0,0.000825]
[1729758631238,0.09660938,67119.0,67117.0,0.22300853]
[1729758631422,0.31252879,67119.0,67117.0,0.22300853]
[1729758631649,0.31252879,67119.0,67114.0,0.149823]
[1729758631865,0.22091941,67119.0,67115.0,0.149822]
[1729758632082,0.04461294,67116.0,67115.0,0.149822]
[1729758632316,0.06693041,67118.0,67115.0,0.149822]
[1729758632317,0.04461294,67117.0,67115.0,0.000825]
[1729758632727,0.04460447,67116.0,67115.0,0.000825]
[1729758632956,0.148995,67116.0,67115.0,0.000825]
[1729758633174,0.24560438,67116.0,67115.0,0.000825]
[1729758633394,0.52175581,67116.0,67115.0,0.000825]
[1729758633608,0.41024462,67116.0,67115.0,0.000825]
[1729758634302,0.42024462,67116.0,67115.0,0.000825]
[1729758634557,0.53165217,67116.0,67115.0,0.000825]
[1729758634789,0.32863524,67116.0,67115.0,0.000825]
[1729758635292,0.44000719,67116.0,67115.0,0.000825]
[1729758635523,0.32863524,67116.0,67115.0,0.000825]
[1729758636007,0.17964024,67116.0,67115.0,0.000825]
[1729758636235,0.163995,67116.0,67115.0,0.000825]
[1729758636466,0.40935095,67119.0,67115.0,0.000825]
[1729758636467,0.04454217,67118.0,67115.0,0.000825]
[1729758636731,0.04454217,67121.0,67117.0,0.38959538]
[1729758636962,0.06680996,67123.0,67117.0,0.38959538]
[1729758636963,0.04454217,67122.0,67121.0,0.148984]
[1729758637461,0.04454217,67122.0,67121.0,0.15740098]
[1729758637698,0.04454217,67123.0,67122.0,0.148982]
[1729758638156,0.04454217,67124.0,67122.0,0.148982]
[1729758638369,0.04454217,67124.0,67122.0,0.00841387]
[1729758638577,0.19352017,67124.0,67122.0,0.00841387]
[1729758639101,0.19352017,67124.0,67120.0,0.148986]
[1729758639102,0.19852017,67124.0,67120.0,0.148986]
[1729758639319,0.04454217,67124.0,67117.0,0.09160938]
[1729758639543,0.04454217,67126.0,67123.0,0.24058938]
[1729758639767,0.04454217,67126.0,67120.0,0.09160938]
[1729758639993,0.04454217,67126.0,67124.0,0.00840765]
[1729758639994,0.04954217,67126.0,67124.0,0.00840765]
[1729758640487,0.20351517,67126.0,67125.0,0.00840454]
[1729758640716,0.04454217,67126.0,67125.0,0.00840454]
[1729758641168,0.04454217,67126.0,67117.0,0.297987]
[1729758641169,0.005,67126.0,67123.0,0.148979]
[1729758641400,0.04954217,67126.0,67123.0,0.148979]
[1729758641618,0.04454217,67126.0,67124.0,0.00840765]
[1729758641842,0.04454217,67126.0,67125.0,0.148975]
[1729758642062,0.04454217,67126.0,67123.0,0.148979]
[1729758642286,0.005,67127.0,67125.0,0.00840454]
[1729758642557,0.04619172,67129.0,67125.0,0.10001392]
[1729758642788,0.001648,67129.0,67127.0,0.14897]
[1729758643205,0.001648,67129.0,67128.0,0.00839521]
[1729758643624,0.150615,67129.0,67125.0,0.148973]
[1729758643842,0.04619172,67129.0,67128.0,0.00839521]
[1729758644058,0.04619172,67129.0,67126.0,0.148971]
[1729758644286,0.19515972,67129.0,67128.0,0.00839521]
[1729758644708,0.19515972,67129.0,67124.0,0.148976]
[1729758644919,0.19515972,67129.0,67128.0,0.00839521]
[1729758645337,0.19515972,67129.0,67124.0,0.148976]
[1729758645566,0.19515972,67129.0,67128.0,0.00839521]
[1729758645775,0.19515972,67129.0,67125.0,0.148974]
[1729758646187,0.19515972,67129.0,67126.0,0.00840143]
[1729758646446,0.04619172,67129.0,67126.0,0.00840143]
[1729758646653,0.001648,67129.0,67128.0,0.148969]
[1729758647073,0.001648,67129.0,67128.0,0.1573607]
[1729758659764,0.001648,67129.0,67128.0,0.30786451]
[1729758661757,0.001648,67129.0,67128.0,0.30868851]
[1729758663117,0.001648,67131.0,67128.0,0.25971951]
[1729758663326,0.22300853,67148.0,67147.0,0.148926]
[1729758663555,0.22300853,67148.0,67147.0,0.24053538]
[1729758663769,0.22300853,67159.0,67147.0,0.09160938]
[1729758663983,0.22300853,67159.0,67149.0,0.148922]
[1729758664206,0.22300853,67159.0,67149.0,0.24053138]
[1729758664451,0.22300853,67159.0,67149.0,0.30800103]
[1729758664903,0.22465653,67161.0,67149.0,0.30800103]
[1729758666415,0.22465653,67161.0,67149.0,0.31342412]
[1729758666619,0.22465653,67161.0,67149.0,0.44978188]
[1729758676627,0.22465653,67161.0,67149.0,0.54978188]
[1729758677472,0.22300853,67160.0,67149.0,1.23008288]
[1729758678146,0.22300853,67160.0,67149.0,1.27348586]
[1729758678356,0.22300853,67160.0,67149.0,1.27548586]
[1729758679229,0.22300853,67160.0,67149.0,1.24208288]
[1729758680759,0.22300853,67160.0,67149.0,1.24008288]
[1729758680964,0.22300853,67160.0,67149.0,1.24208288]
[1729758683643,0.22300853,67160.0,67149.0,1.24008288]
[1729758685126,0.22300853,67160.0,67149.0,1.24208288]
[1729758685336,0.22300853,67160.0,67149.0,1.24008288]
[1729758685977,0.22300853,67160.0,67149.0,1.24208288]
[1729758687132,0.22300853,67160.0,67149.0,1.24008288]
[1729758687745,0.22300853,67160.0,67149.0,1.24208288]
[1729758688153,0.22300853,67160.0,67149.0,1.24008288]
[1729758688362,0.22300853,67160.0,67149.0,1.28864884]
[1729758688778,0.22300853,67160.0,67149.0,1.28664884]
[1729758689021,0.22300853,67160.0,67149.0,1.28864884]
[1729758689641,0.22300853,67160.0,67149.0,1.34818584]
[1729758690726,0.22300853,67160.0,67149.0,1.32052684]
[1729758690953,0.22300853,67160.0,67149.0,1.17167584]
[1729758691156,0.22300853,67160.0,67149.0,1.12428884]
[1729758691397,0.22300853,67160.0,67149.0,1.1705286]
[1729758692920,0.22300853,67160.0,67149.0,1.1685286]
[1729758693854,0.22300853,67160.0,67149.0,1.1705286]
[1729758694053,0.22300853,67160.0,67149.0,1.1685286]
[1729758694267,0.22300853,67160.0,67149.0,1.1705286]
[1729758694475,0.22300853,67160.0,67149.0,1.1685286]
[1729758696580,0.22300853,67160.0,67149.0,1.1705286]
[1729758700173,0.22300853,67160.0,67149.0,1.1685286]
[1729758701782,0.22300853,67160.0,67149.0,1.1705286]
[1729758704971,0.22300853,67160.0,67149.0,1.23697648]
[1729758705173,0.22300853,67160.0,67149.0,1.25912578]
[1729758706976,0.22300853,67160.0,67149.0,1.25712578]
[1729758707884,0.22300853,67160.0,67149.0,1.27927507]
[1729758708089,0.22300853,67160.0,67149.0,1.1685286]
[1729758708300,0.22300853,67160.0,67149.0,1.1785286]
[1729758708926,0.001648,67161.0,67160.0,0.148898]
[1729758709142,0.001648,67161.0,67160.0,0.56808074]
[1729758709380,0.001648,67161.0,67160.0,0.57616861]
[1729758709626,0.001648,67161.0,67160.0,0.64294505]
[1729758709871,0.001648,67161.0,67160.0,0.57616861]
[1729758710107,0.001648,67161.0,67160.0,0.57416861]
[1729758710525,0.001648,67161.0,67160.0,0.48270675]
[1729758710737,0.001648,67161.0,67160.0,0.70571528]
[1729758710962,0.00165,67168.0,67167.0,0.45980572]
[1729758711175,0.00165,67168.0,67167.0,0.65854929]
[1729758711385,0.00165,67168.0,67167.0,3.72310586]
[1729758711846,0.00165,67168.0,67167.0,3.50339386]
[1729758712058,0.00165,67168.0,67167.0,3.39213512]
[1729758712268,0.00165,67168.0,67167.0,3.39013512]
[1729758712498,0.00165,67168.0,67167.0,3.50137488]
[1729758713149,0.00165,67168.0,67167.0,3.08362953]
[1729758713790,0.00165,67168.0,67167.0,3.12899188]
[1729758714366,0.00165,67168.0,67167.0,3.01775212]
[1729758715353,0.00165,67168.0,67167.0,2.93812577]
[1729758716573,0.00165,67168.0,67167.0,2.92335389]
[1729758716777,0.00165,67168.0,67167.0,2.43681389]
[1729758721230,0.00165,67168.0,67167.0,2.73949889]
[1729758721438,0.00165,67168.0,67167.0,2.54863789]
[1729758721880,0.00165,67168.0,67167.0,2.44308789]
[1729758722099,0.00165,67168.0,67167.0,2.50260989]
[1729758722510,0.00165,67168.0,67167.0,2.50060989]
[1729758723414,0.00165,67168.0,67167.0,2.60207175]
[1729758723622,0.00165,67182.0,67177.0,0.35978372]
[1729758723824,0.00165,67182.0,67177.0,2.19228967]
[1729758724037,0.00165,67182.0,67177.0,1.58511659]
[1729758724256,0.00165,67182.0,67177.0,1.77657845]
[1729758725411,0.00165,67182.0,67177.0,1.8219408]
[1729758725627,0.00165,67182.0,67177.0,1.73047894]
[1729758726743,0.00165,67182.0,67177.0,1.82725138]
[1729758727215,0.00165,67182.0,67177.0,1.73578952]
[1729758727655,0.00165,67182.0,67177.0,1.48712752]
[1729758728571,0.00165,67182.0,67177.0,1.55378226]
[1729758729269,0.00165,67182.0,67177.0,1.48712752]
[1729758729926,0.00165,67182.0,67177.0,0.53322117]
[1729758741761,0.00165,67182.0,67177.0,0.96417752]
[1729758741976,0.00165,67182.0,67177.0,1.01048507]
[1729758743370,0.00165,67182.0,67177.0,1.19281992]
[1729758743959,0.00165,67182.0,67177.0,1.10394693]
[1729758744440,0.00165,67182.0,67181.0,0.278851]
[1729758744645,0.00165,67182.0,67181.0,4.76510908]
[1729758744860,0.00165,67182.0,67181.0,4.43048425]
[1729758745064,0.00165,67182.0,67181.0,3.98319374]
[1729758745645,0.00165,67182.0,67181.0,4.09415813]
[1729758745802,0.00165,67182.0,67181.0,4.09615813]
[1729758746018,0.00165,67182.0,67181.0,3.98319374]
[1729758746996,0.00165,67182.0,67181.0,3.88070074]
[1729758749340,0.00165,67182.0,67181.0,3.88270074]
[1729758750284,0.00165,67182.0,67181.0,3.36340974]
[1729758750936,1e-06,67182.0,67181.0,3.36140974]
[1729758751587,1e-06,67183.0,67182.0,0.015]
[1729758751785,1e-06,67183.0,67182.0,2.93384203]
[1729758752246,1e-06,67183.0,67182.0,2.52344703]
[1729758752418,1e-06,67183.0,67182.0,2.09216503]
[1729758752649,1e-06,67183.0,67182.0,2.00362703]
[1729758753100,1e-06,67183.0,67182.0,2.00562703]
[1729758754062,1e-06,67183.0,67182.0,1.67409103]
[1729758758401,1e-06,67183.0,67182.0,1.67209103]
[1729758759075,1e-06,67183.0,67182.0,1.67409103]
[1729758761240,1e-06,67183.0,67182.0,0.88915303]
[1729758761446,1e-06,67183.0,67182.0,0.46769503]
[1729758761690,1e-06,67183.0,67182.0,0.69251498]
[1729758762088,1e-06,67183.0,67182.0,0.46769503]
[1729758762289,1e-06,67183.0,67182.0,0.55915689]
[1729758762763,1e-06,67183.0,67182.0,0.67032036]
[1729758762971,1e-06,67183.0,67182.0,0.55915689]
[1729758764049,1e-06,67183.0,67182.0,0.58215689]
[1729758766703,1e-06,67183.0,67182.0,0.48069503]
[1729758766934,1e-06,67183.0,67182.0,0.57215689]
[1729758767154,1e-06,67183.0,67182.0,0.54415689]
[1729758768540,1e-06,67183.0,67182.0,0.45269503]
[1729758768768,1e-06,67183.0,67182.0,0.40638748]
[1729758768958,1e-06,67183.0,67182.0,0.49537132]
[1729758770287,1e-06,67183.0,67182.0,0.49538559]
[1729758772532,1e-06,67183.0,67182.0,0.51763512]
[1729758772746,1e-06,67183.0,67182.0,0.40638748]
[1729758774659,1e-06,67183.0,67182.0,0.30638748]
[1729758781343,1e-06,67183.0,67182.0,0.30803748]
[1729758811507,1e-06,67183.0,67182.0,0.62025826]
[1729758811717,1e-06,67183.0,67182.0,0.43603748]
[1729758811932,1e-06,67183.0,67182.0,0.52508886]
[1729758812174,1e-06,67183.0,67182.0,0.48247068]
[1729758812656,1e-06,67183.0,67182.0,0.47747068]
[1729758813155,1e-06,67183.0,67182.0,0.48247068]
[1729758819517,1e-06,67183.0,67182.0,0.43603748]
[1729758820428,1e-06,67183.0,67182.0,0.43103748]
[1729758825023,1e-06,67183.0,67182.0,0.40803748]
[1729758826101,1e-06,67183.0,67182.0,0.51932815]
[1729758826308,1e-06,67183.0,67182.0,0.40803748]
[1729758829282,1e-06,67183.0,67182.0,0.41933699]
[1729758829503,1e-06,67183.0,67182.0,0.39708129]
[1729758829741,1e-06,67183.0,67182.0,0.30803748]
[1729758829976,1e-06,67183.0,67182.0,0.37482982]
[1729758830222,1e-06,67183.0,67182.0,0.30803748]
[1729758832323,1e-06,67183.0,67182.0,0.37482982]
[1729758835354,1e-06,67183.0,67182.0,0.07547701]
[1729758835600,1e-06,67183.0,67182.0,0.00868467]
[1729758836483,0.148848,67183.0,67182.0,0.00868467]
[1729758836914,0.148848,67183.0,67182.0,0.00165]
[1729758841173,0.163848,67183.0,67182.0,0.00165]
[1729758841893,0.17777309,67183.0,67182.0,0.00165]
[1729758842310,0.163848,67183.0,67182.0,0.00165]
[1729758842520,0.17776968,67183.0,67182.0,0.00165]
[1729758843444,0.163848,67183.0,67182.0,0.00165]
[1729758844736,0.40893088,67183.0,67182.0,0.00165]
[1729758844931,0.33026864,67183.0,67182.0,0.00165]
[1729758845365,0.265849,67182.0,67181.0,0.001648]
[1729758845572,0.63546093,67182.0,67181.0,0.001648]
[1729758846465,0.50961193,67182.0,67168.0,0.000824]
[1729758846683,0.25533986,67169.0,67168.0,0.000824]
[1729758846905,0.26925669,67169.0,67168.0,0.000824]
[1729758847557,0.26923287,67169.0,67168.0,0.000824]
[1729758848239,0.41973669,67169.0,67168.0,0.000824]
[1729758849167,0.42173669,67169.0,67168.0,0.000824]
[1729758849386,0.56237995,67169.0,67168.0,0.000824]
[1729758849600,0.59312903,67169.0,67168.0,0.000824]
[1729758851589,0.59312903,67169.0,67132.0,0.297917]
[1729758851590,0.165891,67163.0,67132.0,0.297917]
[1729758851807,0.45328783,67163.0,67136.0,0.22300853]
[1729758852015,0.79530357,67163.0,67136.0,0.22300853]
[1729758852224,0.79530357,67163.0,67137.0,0.148948]
[1729758852404,0.79530357,67163.0,67136.0,0.22300853]
[1729758852845,0.79530357,67163.0,67139.0,0.148944]
[1729758853283,0.77309263,67163.0,67138.0,0.148945]
[1729758853987,0.77309263,67163.0,67136.0,0.22300853]
[1729758854205,0.45328783,67163.0,67136.0,0.22300853]
[1729758854426,0.42828783,67163.0,67144.0,0.09146186]
[1729758854620,0.51974969,67163.0,67147.0,0.148925]
[1729758854878,0.51970818,67163.0,67147.0,0.148925]
[1729758855104,0.51970818,67163.0,67149.0,0.14892]
[1729758855105,0.41439481,67163.0,67149.0,0.14892]
[1729758855350,0.41439481,67163.0,67150.0,0.37192753]
[1729758855563,0.50585667,67163.0,67150.0,0.37192753]
[1729758856002,0.50585667,67163.0,67151.0,0.148917]
[1729758856252,0.50585667,67163.0,67150.0,0.22300853]
[1729758856460,0.55074909,67163.0,67150.0,0.22300853]
[1729758857549,0.55074909,67163.0,67150.0,0.37192753]
[1729758858697,0.55074909,67163.0,67150.0,0.37192653]
[1729758858919,0.163891,67163.0,67151.0,0.297832]
[1729758859146,0.163891,67163.0,67153.0,0.148912]
[1729758859776,0.163891,67163.0,67151.0,0.446748]
[1729758859990,0.163891,67163.0,67152.0,0.148915]
[1729758860863,0.163891,67163.0,67154.0,0.14891]
[1729758861076,0.163891,67163.0,67153.0,0.148913]
[1729758861328,0.163891,67163.0,67152.0,0.148914]
[1729758865017,0.2275482,67163.0,67152.0,0.148914]
[1729758865257,0.2275482,67163.0,67151.0,0.148917]
[1729758866756,0.2275482,67163.0,67150.0,0.22300853]
[1729758867177,0.38005201,67163.0,67150.0,0.22300853]
[1729758868026,0.39394635,67163.0,67150.0,0.22300853]
[1729758869094,0.41618648,67163.0,67150.0,0.22300853]
[1729758869347,0.39394635,67163.0,67150.0,0.22300853]
[1729758869553,0.41619511,67163.0,67150.0,0.22300853]
[1729758872796,0.55254939,67163.0,67150.0,0.22300853]
[1729758873024,0.65259778,67163.0,67150.0,0.22300853]
[1729758874525,0.30227228,67151.0,67150.0,0.22300853]
[1729758874778,0.33646377,67151.0,67150.0,0.22300853]
[1729758875268,0.148933,67144.0,67143.0,0.22300853]
[1729758875764,0.148949,67137.0,67136.0,0.22300853]
[1729758876251,0.148949,67137.0,67135.0,0.000824]
[1729758876446,0.09157206,67139.0,67135.0,0.000824]
[1729758877162,0.148948,67138.0,67135.0,0.000824]
[1729758877406,0.16288706,67138.0,67135.0,0.000824]
[1729758878321,0.148948,67138.0,67135.0,0.000824]
[1729758879043,0.16287637,67140.0,67136.0,0.22300853]
[1729758879280,0.16287637,67140.0,67135.0,0.149776]
[1729758879981,0.148943,67140.0,67135.0,0.149776]
[1729758880221,0.148945,67139.0,67135.0,0.149776]
[1729758880885,0.30288,67141.0,67135.0,0.149776]
[1729758881138,0.148945,67139.0,67135.0,0.149776]
[1729758881395,0.148944,67139.0,67135.0,0.000824]
[1729758882111,0.148944,67139.0,67135.0,0.149777]
[1729758884065,0.30288,67141.0,67135.0,0.149777]
[1729758884066,0.005,67141.0,67136.0,0.148949]
[1729758884349,0.005,67142.0,67136.0,0.297902]
[1729758884592,0.005,67142.0,67140.0,0.148942]
[1729758885021,0.01,67142.0,67140.0,0.148942]
[1729758885314,0.01,67142.0,67137.0,0.297898]
[1729758885315,0.005,67142.0,67137.0,0.297898]
[1729758885569,0.005,67142.0,67141.0,0.14894]
[1729758886283,0.005,67142.0,67138.0,0.297893]
[1729758886514,0.005,67142.0,67139.0,0.148942]
[1729758886997,0.005,67142.0,67141.0,0.14894]
[1729758887233,0.005,67142.0,67138.0,0.297893]
[1729758887479,0.005,67142.0,67136.0,0.00610668]
[1729758887480,0.005,67142.0,67140.0,0.148941]
[1729758888882,0.005,67142.0,67141.0,0.00716636]
[1729758890260,0.148931,67145.0,67141.0,0.15610436]
[1729758890753,0.148934,67144.0,67141.0,0.00716636]
[1729758890997,0.005,67146.0,67141.0,0.00716636]
[1729758891225,0.005,67146.0,67140.0,0.297883]
[1729758891447,0.15393,67146.0,67142.0,0.00716447]
[1729758891695,0.15393,67146.0,67143.0,0.00716205]
[1729758891935,0.005,67146.0,67143.0,0.15609605]
[1729758892149,0.153929,67146.0,67140.0,0.297883]
[1729758892413,0.153929,67146.0,67144.0,0.00715963]
[1729758892656,0.153929,67146.0,67142.0,0.148937]
[1729758892888,0.153929,67146.0,67143.0,0.00716129]
[1729758893610,0.148932,67145.0,67143.0,0.00716129]
[1729758894098,0.148932,67145.0,67144.0,0.00715905]
[1729758894606,0.148932,67145.0,67139.0,0.148942]
[1729758894845,0.148932,67145.0,67144.0,0.00715905]
[1729758895082,0.148932,67145.0,67144.0,0.00715918]
[1729758895276,0.148932,67145.0,67140.0,0.148941]
[1729758895547,0.148932,67145.0,67144.0,0.00715918]
[1729758895777,0.005,67146.0,67137.0,0.297894]
[1729758895988,0.148935,67144.0,67139.0,0.148943]
[1729758896450,0.148935,67144.0,67140.0,0.00716885]
[1729758896665,0.148935,67144.0,67140.0,0.148942]
[1729758896879,0.148935,67144.0,67141.0,0.00716671]
[1729758898929,0.01393531,67145.0,67141.0,0.00716671]
[1729758899144,0.148936,67143.0,67141.0,0.00716671]
[1729758899359,0.148936,67143.0,67139.0,0.148944]
[1729758899603,0.148936,67143.0,67142.0,0.00716457]
[1729758899809,0.16287131,67143.0,67138.0,0.148946]
[1729758900037,0.16287131,67143.0,67142.0,0.00716477]
[1729758900253,0.01393531,67143.0,67140.0,0.148942]
[1729758900468,0.148933,67145.0,67140.0,0.148942]
[1729758900469,0.148934,67144.0,67141.0,0.00716718]
[1729758900906,0.31181328,67144.0,67141.0,0.00716718]
[1729758901128,0.148938,67142.0,67141.0,0.00716718]
[1729758901364,0.01394628,67143.0,67139.0,0.148944]
[1729758901571,0.01394628,67143.0,67141.0,0.00716718]
[1729758901792,0.01394628,67143.0,67140.0,0.1561116]
[1729758902016,0.01394628,67143.0,67142.0,0.00716477]
[1729758902269,0.148935,67144.0,67141.0,0.00716718]
[1729758902490,0.16288128,67144.0,67142.0,0.00716477]
[1729758902703,0.01394628,67143.0,67142.0,0.00716477]
[1729758902886,0.148935,67144.0,67140.0,0.148942]
[1729758903138,0.162885,67144.0,67142.0,0.00716477]
[1729758903357,0.01395,67143.0,67141.0,0.00716718]
[1729758903596,0.01395,67143.0,67140.0,0.148942]
[1729758903818,0.01395,67143.0,67142.0,0.00716477]
[1729758904034,0.148935,67144.0,67141.0,0.00716718]
[1729758904253,0.01395096,67143.0,67142.0,0.00716477]
[1729758904500,0.01395096,67143.0,67140.0,0.148942]
[1729758904741,0.01395096,67143.0,67142.0,0.00716477]
[1729758904971,0.01395096,67143.0,67141.0,0.00716718]
[1729758905188,0.01395096,67143.0,67142.0,0.00716477]
[1729758905625,0.01395096,67143.0,67140.0,0.148942]
[1729758905850,0.01395096,67143.0,67142.0,0.00716477]
[1729758906324,0.01395096,67143.0,67140.0,0.148942]
[1729758906568,0.01395096,67143.0,67142.0,0.00716477]
[1729758906784,0.01395096,67143.0,67141.0,0.00716718]
[1729758907004,0.01395096,67143.0,67142.0,0.00716477]
[1729758907479,0.16288496,67144.0,67142.0,0.00716477]
[1729758907757,0.01395096,67143.0,67142.0,0.00716477]